fUSD/lending_fUSD_20250629
["ID","MTS","AMOUNT","RATE_DAILY","PERIOD"]
[368512320,1751194247076,-490.0,0.00027397,3]
[368512321,1751194247097,-490.0,0.00027397,3]
[368512322,1751194247112,-490.0,0.00027397,3]
[368512323,1751194247121,-490.0,0.00027397,3]
[368512324,1751194247130,-491.45644806,0.00027397,3]
[368512325,1751194247139,-578.97,0.00027397,3]
[368512326,1751194247148,-490.64439031,0.00027397,3]
[368512327,1751194247158,-490.0,0.00027397,3]
[368512328,1751194247167,-534.15,0.00027397,3]
[368512329,1751194247176,-490.0,0.00027397,3]
[368512330,1751194247186,-490.0,0.00027397,3]
[368512331,1751194247196,-490.0,0.00027397,3]
[368512332,1751194247205,-490.0,0.00027397,3]
[368512333,1751194247214,-490.0,0.00027397,3]
[368512334,1751194247223,-490.0,0.00027397,3]
[368512335,1751194247233,-490.0,0.00027397,3]
[368512336,1751194247242,-871.36,0.00027397,3]
[368512337,1751194247251,-490.0,0.00027397,3]
[368512338,1751194247260,-490.0,0.00027397,3]
[368512339,1751194247270,-529.2,0.00027397,3]
[368512340,1751194247279,-493.52187174,0.00027397,3]
[368512341,1751194247289,-490.0,0.00027397,3]
[368512342,1751194247298,-225.3139537,0.00027397,3]
[368512343,1751194247307,-499.86,0.00027397,3]
[368512344,1751194247316,-612.59,0.00027397,3]
[368512345,1751194247325,-972.25,0.00027397,3]
[368512346,1751194247334,-490.0,0.00027397,3]
[368512347,1751194247343,-490.0,0.00027397,3]
[368512348,1751194247353,-1690.95,0.00027397,3]
[368512349,1751194247362,-440.0,0.00027397,3]
[368512350,1751194247371,-490.0,0.00027397,3]
[368512351,1751194247380,-490.0,0.00027397,3]
[368512352,1751194247390,-490.0,0.00027397,3]
[368512353,1751194247399,-983.04,0.00027397,3]
[368512354,1751194247408,-1999.98,0.00027397,3]
[368512355,1751194247417,-933.91,0.00027397,3]
[368512356,1751194247427,-567.17,0.00027397,3]
[368512357,1751194247436,-490.0,0.00027397,3]
[368512358,1751194247445,-490.0,0.00027397,3]
[368512359,1751194247455,-490.0,0.00027397,3]
[368512360,1751194247464,-490.0,0.00027397,3]
[368512361,1751194247473,-490.0,0.00027397,3]
[368512362,1751194247483,-747.2,0.00027397,3]
[368512363,1751194247492,-490.0,0.00027397,3]
[368512364,1751194247501,-490.0,0.00027397,3]
[368512365,1751194247510,-490.0,0.00027397,3]
[368512366,1751194247519,-3120.96,0.00027397,3]
[368512367,1751194247528,-490.0,0.00027397,3]
[368512368,1751194247538,-1080.24,0.00027397,3]
[368512369,1751194247547,-490.0,0.00027397,3]
[368512370,1751194247557,-490.0,0.00027397,3]
[368512371,1751194247566,-1156.07,0.00027397,3]
[368512372,1751194247575,-1141.22,0.00027397,3]
[368512373,1751194247584,-490.0,0.00027397,3]
[368512374,1751194247594,-5234.52,0.00027397,3]
[368512375,1751194247603,-490.0,0.00027397,3]
[368512376,1751194247613,-490.0,0.00027397,3]
[368512377,1751194247622,-490.0,0.00027397,3]
[368512378,1751194247631,-723.63,0.00027397,3]
[368512379,1751194247640,-164.8104788,0.00027397,3]
[368512380,1751194247650,-330.24527045,0.00027397,3]
[368512381,1751194247660,-490.0,0.00027397,3]
[368512382,1751194247669,-534.04,0.00027397,3]
[368512383,1751194247679,-677.66,0.00027397,3]
[368512384,1751194247689,-490.0,0.00027397,3]
[368512385,1751194247699,-6702.81,0.00027397,3]
[368512386,1751194247709,-490.0,0.00027397,3]
[368512387,1751194247719,-500.0,0.00027397,3]
[368512388,1751194247729,-500.0,0.00027397,3]
[368512389,1751194247738,-500.0,0.00027397,3]
[368512390,1751194247748,-500.0,0.00027397,3]
[368512391,1751194247758,-500.0,0.00027397,3]
[368512392,1751194247768,-795.02175,0.00027397,3]
[368512393,1751194247777,-500.0,0.00027397,3]
[368512394,1751194247787,-490.0,0.00027397,3]
[368512395,1751194247796,-500.0,0.00027397,3]
[368512396,1751194247806,-490.0,0.00027397,3]
[368512397,1751194247815,-490.0,0.00027397,3]
[368512398,1751194247824,-490.0,0.00027397,3]
[368512399,1751194247834,-273.96976281,0.00027397,3]
[368512400,1751194247843,-873.47,0.00027397,3]
[368512401,1751194247853,-490.0,0.00027397,3]
[368512402,1751194247862,-1366.91,0.00027397,3]
[368512403,1751194247871,-5532.56,0.00027397,3]
[368512404,1751194247881,-490.0,0.00027397,3]
[368512405,1751194247890,-1135.48,0.00027397,3]
[368512406,1751194247900,-490.0,0.00027397,3]
[368512407,1751194247909,-490.0,0.00027397,3]
[368512408,1751194247919,-1476.15,0.00027397,3]
[368512409,1751194247928,-490.0,0.00027397,3]
[368512410,1751194247938,-464.23889366,0.00027397,3]
[368512411,1751194247947,-490.0,0.00027397,3]
[368512412,1751194247957,-492.1267749,0.00027397,3]
[368512413,1751194247968,-490.0,0.00027397,3]
[368512414,1751194247978,-1511.71,0.00027397,3]
[368512415,1751194247988,-490.0,0.00027397,3]
[368512416,1751194247998,-490.0,0.00027397,3]
[368512417,1751194248007,-103112.27,0.00027397,3]
[368512418,1751194248016,-490.0,0.00027397,3]
[368512419,1751194248026,-827.69,0.00027397,3]
[368512420,1751194248038,-490.0,0.00027397,3]
[368512421,1751194248048,-490.0,0.00027397,3]
[368512422,1751194248058,-1080.39,0.00027397,3]
[368512423,1751194248068,-818.64,0.00027397,3]
[368512424,1751194248077,-3680.78,0.00027397,3]
[368512425,1751194248086,-162.99,0.00027397,3]
[368512426,1751194248095,-426.86355211,0.00027397,3]
[368512427,1751194248104,-657.08,0.00027397,3]
[368512428,1751194248113,-1084.7,0.00027397,3]
[368512429,1751194248122,-490.0,0.00027397,3]
[368512430,1751194248131,-1676.03,0.00027397,3]
[368512431,1751194248141,-465.5361354,0.00027397,3]
[368512432,1751194248150,-490.0,0.00027397,3]
[368512433,1751194248159,-490.0,0.00027397,3]
[368512434,1751194248168,-409.23703287,0.00027397,3]
[368512435,1751194248178,-1841.91,0.00027397,3]
[368512436,1751194248187,-406.08133128,0.00027397,3]
[368512437,1751194248197,-808.31,0.00027397,3]
[368512438,1751194248206,-1771.19,0.00027397,3]
[368512439,1751194248216,-493.42026816,0.00027397,3]
[368512440,1751194248225,-500.56328977,0.00027397,3]
[368512441,1751194248234,-490.91165774,0.00027397,3]
[368512442,1751194248244,-490.0,0.00027397,3]
[368512443,1751194248253,-777.13,0.00027397,3]
[368512444,1751194248262,-490.0,0.00027397,3]
[368512445,1751194248272,-490.0,0.00027397,3]
[368512446,1751194248281,-1103.86,0.00027397,3]
[368512447,1751194248291,-1397.73,0.00027397,3]
[368512448,1751194248301,-577.88,0.00027397,3]
[368512449,1751194248311,-2621.52,0.00027397,3]
[368512450,1751194248320,-490.0,0.00027397,3]
[368512451,1751194248330,-625.681203,0.00027397,3]
[368512452,1751194248340,-490.0,0.00027397,3]
[368512453,1751194248349,-1009.96,0.00027397,3]
[368512454,1751194248359,-490.0,0.00027397,3]
[368512455,1751194248368,-490.0,0.00027397,3]
[368512456,1751194248378,-1009.67,0.00027397,3]
[368512457,1751194248387,-490.0,0.00027397,3]
[368512458,1751194248397,-1391.51,0.00027397,3]
[368512459,1751194248407,-493.87071187,0.00027397,3]
[368512460,1751194248417,-490.0,0.00027397,3]
[368512461,1751194248426,-490.0,0.00027397,3]
[368512462,1751194248436,-490.0,0.00027397,3]
[368512463,1751194248445,-500.0,0.00027397,3]
[368512464,1751194248454,-500.0,0.00027397,3]
[368512465,1751194248464,-2403.19,0.00027397,3]
[368512466,1751194248473,-963.8,0.00027397,3]
[368512467,1751194248482,-504.64,0.00027397,3]
[368512468,1751194248492,-500.0,0.00027397,3]
[368512469,1751194248502,-490.0,0.00027397,3]
[368512470,1751194248511,-500.0,0.00027397,3]
[368512471,1751194248521,-490.0,0.00027397,3]
[368512472,1751194248530,-500.0,0.00027397,3]
[368512473,1751194248539,-490.0,0.00027397,3]
[368512474,1751194248549,-867.3,0.00027397,3]
[368512475,1751194248558,-796.93,0.00027397,3]
[368512476,1751194248568,-496.03,0.00027397,3]
[368512477,1751194248578,-1622.82,0.00027397,3]
[368512478,1751194248588,-1469.3,0.00027397,3]
[368512479,1751194248597,-1096.54,0.00027397,3]
[368512480,1751194248606,-490.0,0.00027397,3]
[368512481,1751194248616,-994.82,0.00027397,3]
[368512482,1751194248625,-585.7,0.00027397,3]
[368512483,1751194248635,-765.718893,0.00027397,3]
[368512484,1751194248645,-490.0,0.00027397,3]
[368512485,1751194248655,-518.89471244,0.00027397,3]
[368512486,1751194248664,-490.0,0.00027397,3]
[368512487,1751194248674,-986.61,0.00027397,3]
[368512488,1751194248683,-1445.24,0.00027397,3]
[368512489,1751194248693,-1284.88,0.00027397,3]
[368512490,1751194248703,-1733.58,0.00027397,3]
[368512491,1751194248712,-1113.61,0.00027397,3]
[368512492,1751194248721,-490.0,0.00027397,3]
[368512493,1751194248731,-490.0,0.00027397,3]
[368512494,1751194248741,-5329.02,0.00027397,3]
[368512495,1751194248751,-711.13,0.00027397,3]
[368512496,1751194248760,-490.0,0.00027397,2]
[368512497,1751194248770,-1340.55,0.00027397,3]
[368512498,1751194248780,-546.693834,0.00027397,3]
[368512499,1751194248790,-529.494333,0.00027397,3]
[368512500,1751194248799,-490.0,0.00027397,3]
[368512501,1751194248809,-150.0,0.00027397,3]
[368512502,1751194248818,-490.0,0.00027397,3]
[368512503,1751194248828,-490.0,0.00027397,3]
[368512504,1751194248837,-150.0,0.00027397,2]
[368512505,1751194248847,-490.0,0.00027397,3]
[368512506,1751194248856,-2678.7,0.00027397,3]
[368512507,1751194248867,-490.0,0.00027397,3]
[368512508,1751194248877,-3083.58,0.00027397,3]
[368512509,1751194248887,-490.0,0.00027397,3]
[368512510,1751194248897,-795.8,0.00027397,3]
[368512511,1751194248907,-490.0,0.00027397,3]
[368512512,1751194248916,-397.91145359,0.00027397,3]
[368512513,1751194248925,-2825.66,0.00027397,3]
[368512514,1751194248935,-490.0,0.00027397,3]
[368512515,1751194248944,-765.55,0.00027397,3]
[368512516,1751194248955,-490.0,0.00027397,3]
[368512517,1751194248967,-490.0,0.00027397,3]
[368512518,1751194248977,-956.04,0.00027397,3]
[368512519,1751194248987,-490.0,0.00027397,3]
[368512520,1751194249000,-1905.65,0.00027397,3]
[368512521,1751194249011,-490.0,0.00027397,3]
[368512522,1751194249021,-490.0,0.00027397,3]
[368512523,1751194249030,-490.0,0.00027397,3]
[368512524,1751194249040,-490.0,0.00027397,3]
[368512525,1751194249049,-491.66545995,0.00027397,3]
[368512526,1751194249059,-14415.41,0.00027397,3]
[368512527,1751194249068,-490.0,0.00027397,3]
[368512528,1751194249078,-561.38,0.00027397,3]
[368512529,1751194249087,-492.80114057,0.00027397,3]
[368512530,1751194249096,-490.0,0.00027397,3]
[368512531,1751194249106,-1701.67,0.00027397,3]
[368512532,1751194249116,-496.82,0.00027397,3]
[368512533,1751194249125,-1039.13,0.00027397,3]
[368512534,1751194249135,-490.0,0.00027397,3]
[368512535,1751194249144,-2176.77,0.00027397,3]
[368512536,1751194249153,-1044.7,0.00027397,3]
[368512537,1751194249163,-684.856176,0.00027397,3]
[368512538,1751194249172,-494.29413008,0.00027397,3]
[368512539,1751194249182,-490.0,0.00027397,3]
[368512540,1751194249192,-1422.17,0.00027397,3]
[368512541,1751194249202,-1903.71,0.00027397,3]
[368512542,1751194249211,-491.64966027,0.00027397,3]
[368512543,1751194249221,-469.899209,0.00027397,3]
[368512544,1751194249230,-467.660477,0.00027397,3]
[368512545,1751194249240,-490.0,0.00027397,3]
[368512546,1751194249249,-490.0,0.00027397,3]
[368512547,1751194249259,-490.0,0.00027397,3]
[368512548,1751194249269,-1130.93,0.00027397,3]
[368512549,1751194249278,-830.33,0.00027397,3]
[368512550,1751194249288,-1572.11,0.00027397,3]
[368512551,1751194249297,-2670.56,0.00027397,3]
[368512552,1751194249307,-604.44,0.00027397,3]
[368512553,1751194249316,-671.05,0.00027397,3]
[368512554,1751194249326,-500.0,0.00027397,3]
[368512555,1751194249335,-492.47393887,0.00027397,3]
[368512556,1751194249345,-500.0,0.00027397,3]
[368512557,1751194249354,-490.0,0.00027397,3]
[368512558,1751194249364,-1991.26,0.00027397,3]
[368512559,1751194249373,-490.0,0.00027397,3]
[368512560,1751194249383,-875.56,0.00027397,3]
[368512561,1751194249392,-490.0,0.00027397,3]
[368512562,1751194249401,-490.0,0.00027397,3]
[368512563,1751194249410,-490.0,0.00027397,3]
[368512564,1751194249419,-490.0,0.00027397,3]
[368512565,1751194249429,-490.0,0.00027397,3]
[368512566,1751194249438,-490.0,0.00027397,3]
[368512567,1751194249447,-510.54892915,0.00027397,3]
[368512568,1751194249456,-490.0,0.00027397,3]
[368512569,1751194249466,-490.0,0.00027397,3]
[368512570,1751194249475,-490.0,0.00027397,3]
[368512571,1751194249484,-1354.26,0.00027397,3]
[368512572,1751194249493,-490.0,0.00027397,3]
[368512573,1751194249502,-498.72,0.00027397,3]
[368512574,1751194249512,-490.0,0.00027397,3]
[368512575,1751194249521,-583.28,0.00027397,3]
[368512576,1751194249530,-500.0,0.00027397,3]
[368512577,1751194249539,-3811.43,0.00027397,3]
[368512578,1751194249548,-671.44,0.00027397,3]
[368512579,1751194249557,-500.0,0.00027397,3]
[368512580,1751194249567,-500.0,0.00027397,3]
[368512581,1751194249575,-490.0,0.00027397,3]
[368512582,1751194249585,-500.0,0.00027397,3]
[368512583,1751194249594,-500.0,0.00027397,3]
[368512584,1751194249603,-585.551072,0.00027397,3]
[368512585,1751194249612,-500.0,0.00027397,3]
[368512586,1751194249622,-500.0,0.00027397,3]
[368512587,1751194249631,-500.0,0.00027397,3]
[368512588,1751194249641,-490.0,0.00027397,3]
[368512589,1751194249651,-8384.64,0.00027397,3]
[368512590,1751194249660,-1567.24,0.00027397,3]
[368512591,1751194249670,-1471.91,0.00027397,3]
[368512592,1751194249679,-490.0,0.00027397,3]
[368512593,1751194249688,-2859.9,0.00027397,3]
[368512594,1751194249698,-401.574256,0.00027397,3]
[368512595,1751194249707,-410.400602,0.00027397,3]
[368512596,1751194249717,-490.0,0.00027397,3]
[368512597,1751194249727,-490.0,0.00027397,3]
[368512598,1751194249738,-583.43,0.00027397,3]
[368512599,1751194249747,-1275.82,0.00027397,3]
[368512600,1751194249757,-942.64,0.00027397,3]
[368512601,1751194249766,-490.0,0.00027397,3]
[368512602,1751194249776,-1218.96,0.00027397,3]
[368512603,1751194249785,-490.0,0.00027397,3]
[368512604,1751194249795,-490.0,0.00027397,3]
[368512605,1751194249804,-2671.04,0.00027397,3]
[368512606,1751194249814,-490.0,0.00027397,3]
[368512607,1751194249824,-490.0,0.00027397,3]
[368512608,1751194249834,-490.0,0.00027397,3]
[368512609,1751194249843,-490.0,0.00027397,3]
[368512610,1751194249853,-490.0,0.00027397,3]
[368512611,1751194249862,-1387.28,0.00027397,3]
[368512612,1751194249872,-2549.36,0.00027397,3]
[368512613,1751194249882,-1639.16,0.00027397,3]
[368512614,1751194249892,-490.0,0.00027397,3]
[368512615,1751194249902,-2657.31,0.00027397,3]
[368512616,1751194249911,-490.0,0.00027397,3]
[368512617,1751194249920,-760.82,0.00027397,3]
[368512618,1751194249929,-853.61,0.00027397,3]
[368512619,1751194249939,-490.0,0.00027397,3]
[368512620,1751194249948,-464.19742774,0.00027397,3]
[368512621,1751194249961,-990.85,0.00027397,3]
[368512622,1751194249971,-500.0,0.00027397,3]
[368512623,1751194249981,-480.00862597,0.00027397,3]
[368512624,1751194249990,-490.0,0.00027397,3]
[368512625,1751194250001,-523.02,0.00027397,3]
[368512626,1751194250010,-490.0,0.00027397,3]
[368512627,1751194250020,-543.89,0.00027397,3]
[368512628,1751194250032,-490.0,0.00027397,3]
[368512629,1751194250043,-490.0,0.00027397,3]
[368512630,1751194250052,-490.0,0.00027397,3]
[368512631,1751194250062,-490.0,0.00027397,3]
[368512632,1751194250072,-490.0,0.00027397,3]
[368512633,1751194250081,-1634.17,0.00027397,3]
[368512634,1751194250090,-490.0,0.00027397,3]
[368512635,1751194250099,-490.0,0.00027397,3]
[368512636,1751194250109,-888.23,0.00027397,3]
[368512637,1751194250118,-359.48083,0.00027397,3]
[368512638,1751194250127,-490.0,0.00027397,3]
[368512639,1751194250136,-1671.08,0.00027397,3]
[368512640,1751194250145,-1835.93,0.00027397,3]
[368512641,1751194250327,-488.44764,0.00027397,3]
[368512642,1751194250347,-4544.23,0.00027397,3]
[368512643,1751194250357,-490.0,0.00027397,3]
[368512644,1751194250366,-490.0,0.00027397,3]
[368512645,1751194250375,-490.0,0.00027397,3]
[368512646,1751194250384,-1461.04,0.00027397,3]
[368512647,1751194250394,-1479.81,0.00027397,3]
[368512648,1751194250403,-490.0,0.00027397,3]
[368512649,1751194250412,-490.0,0.00027397,3]
[368512650,1751194250421,-490.0,0.00027397,3]
[368512651,1751194250431,-490.0,0.00027397,3]
[368512652,1751194250440,-490.0,0.00027397,3]
[368512653,1751194250450,-490.0,0.00027397,3]
[368512654,1751194250459,-491.75111828,0.00027397,3]
[368512655,1751194250468,-490.0,0.00027397,3]
[368512656,1751194250477,-490.0,0.00027397,3]
[368512657,1751194250486,-517.92,0.00027397,3]
[368512658,1751194250495,-490.0,0.00027397,3]
[368512659,1751194250505,-1735.89,0.00027397,3]
[368512660,1751194250514,-3742.15,0.00027397,3]
[368512661,1751194250523,-490.0,0.00027397,3]
[368512662,1751194250532,-2334.39,0.00027397,3]
[368512663,1751194250541,-490.0,0.00027397,3]
[368512664,1751194250551,-1221.22,0.00027397,3]
[368512665,1751194250560,-3469.82,0.00027397,3]
[368512666,1751194250569,-490.0,0.00027397,3]
[368512667,1751194250579,-490.0,0.00027397,3]
[368512668,1751194250588,-1554.46,0.00027397,3]
[368512669,1751194250597,-1709.39,0.00027397,3]
[368512670,1751194250606,-490.0,0.00027397,3]
[368512671,1751194250615,-1302.99,0.00027397,3]
[368512672,1751194250624,-490.0,0.00027397,3]
[368512673,1751194250633,-490.0,0.00027397,3]
[368512674,1751194250643,-490.0,0.00027397,3]
[368512675,1751194250652,-490.0,0.00027397,3]
[368512676,1751194250662,-342.462824,0.00027397,3]
[368512677,1751194250671,-490.0,0.00027397,3]
[368512678,1751194250680,-490.0,0.00027397,3]
[368512679,1751194250690,-490.0,0.00027397,3]
[368512680,1751194250699,-2739.35,0.00027397,3]
[368512681,1751194250709,-506.35277766,0.00027397,3]
[368512682,1751194250719,-490.0,0.00027397,3]
[368512683,1751194250728,-1449.85,0.00027397,3]
[368512684,1751194250738,-403.83972,0.00027397,3]
[368512685,1751194250747,-490.0,0.00027397,3]
[368512686,1751194250757,-621.54,0.00027397,3]
[368512687,1751194250766,-1404.73,0.00027397,3]
[368512688,1751194250776,-490.0,0.00027397,3]
[368512689,1751194250785,-1147.69,0.00027397,3]
[368512690,1751194250793,-677.47,0.00027397,3]
[368512691,1751194250802,-1983.22,0.00027397,3]
[368512692,1751194250812,-490.0,0.00027397,3]
[368512693,1751194250821,-490.0,0.00027397,3]
[368512694,1751194250831,-490.0,0.00027397,3]
[368512695,1751194250840,-490.0,0.00027397,3]
[368512696,1751194250850,-490.0,0.00027397,3]
[368512697,1751194250860,-2990.15,0.00027397,3]
[368512698,1751194250869,-490.0,0.00027397,3]
[368512699,1751194250879,-490.0,0.00027397,3]
[368512700,1751194250888,-1337.18,0.00027397,3]
[368512701,1751194250897,-490.0,0.00027397,3]
[368512702,1751194250907,-490.0,0.00027397,3]
[368512703,1751194250916,-2817.39,0.00027397,3]
[368512704,1751194250925,-552.49,0.00027397,3]
[368512705,1751194250934,-490.0,0.00027397,3]
[368512706,1751194250944,-490.0,0.00027397,3]
[368512707,1751194250953,-1850.59,0.00027397,3]
[368512708,1751194250966,-1361.21,0.00027397,3]
[368512709,1751194250976,-490.0,0.00027397,3]
[368512710,1751194250985,-490.0,0.00027397,3]
[368512711,1751194250995,-3507.44,0.00027397,3]
[368512712,1751194251006,-490.0,0.00027397,3]
[368512713,1751194251015,-2114.83,0.00027397,3]
[368512714,1751194251023,-490.0,0.00027397,3]
[368512715,1751194251034,-810.52,0.00027397,3]
[368512716,1751194251044,-314.286784,0.00027397,3]
[368512717,1751194251054,-490.0,0.00027397,3]
[368512718,1751194251063,-335.340847,0.00027397,3]
[368512719,1751194251072,-490.0,0.00027397,3]
[368512720,1751194251080,-1952.59,0.00027397,3]
[368512721,1751194251088,-1714.23,0.00027397,3]
[368512722,1751194251098,-490.0,0.00027397,3]
[368512723,1751194251107,-1796.3,0.00027397,3]
[368512724,1751194251117,-490.0,0.00027397,3]
[368512725,1751194251126,-490.0,0.00027397,3]
[368512726,1751194251135,-490.0,0.00027397,3]
[368512727,1751194251145,-490.0,0.00027397,3]
[368512728,1751194251154,-490.0,0.00027397,3]
[368512729,1751194251164,-5334.23,0.00027397,3]
[368512730,1751194251174,-578.48,0.00027397,3]
[368512731,1751194251183,-1032.52,0.00027397,3]
[368512732,1751194251193,-490.0,0.00027397,3]
[368512733,1751194251202,-818.2,0.00027397,3]
[368512734,1751194251212,-496.76341023,0.00027397,3]
[368512735,1751194251221,-1547.54,0.00027397,3]
[368512736,1751194251230,-490.0,0.00027397,3]
[368512737,1751194251240,-1491.58,0.00027397,3]
[368512738,1751194251250,-490.0,0.00027397,3]
[368512739,1751194251260,-490.0,0.00027397,3]
[368512740,1751194251270,-490.0,0.00027397,3]
[368512741,1751194251280,-1968.49,0.00027397,3]
[368512742,1751194251289,-517.94,0.00027397,3]
[368512743,1751194251299,-490.0,0.00027397,3]
[368512744,1751194251308,-490.0,0.00027397,3]
[368512745,1751194251318,-21312.98,0.00027397,3]
[368512746,1751194251328,-490.0,0.00027397,3]
[368512747,1751194251338,-1256.05,0.00027397,3]
[368512748,1751194251348,-490.0,0.00027397,3]
[368512749,1751194251358,-490.0,0.00027397,3]
[368512750,1751194251367,-490.0,0.00027397,3]
[368512751,1751194251376,-2796.12,0.00027397,3]
[368512752,1751194251386,-335.341798,0.00027397,3]
[368512753,1751194251396,-490.0,0.00027397,3]
[368512754,1751194251406,-490.81364155,0.00027397,3]
[368512755,1751194251415,-490.0,0.00027397,3]
[368512756,1751194251425,-600.66,0.00027397,3]
[368512757,1751194251434,-306.44245,0.00027397,3]
[368512758,1751194251444,-1287.96,0.00027397,3]
[368512759,1751194251454,-1183.3,0.00027397,3]
[368512760,1751194251463,-1335.87,0.00027397,3]
[368512761,1751194251473,-490.0,0.00027397,3]
[368512762,1751194251482,-490.0,0.00027397,3]
[368512763,1751194251492,-490.0,0.00027397,3]
[368512764,1751194251502,-3221.52,0.00027397,3]
[368512765,1751194251511,-399.03884,0.00027397,3]
[368512766,1751194251521,-490.0,0.00027397,3]
[368512767,1751194251530,-495.91224619,0.00027397,3]
[368512768,1751194251540,-490.0,0.00027397,3]
[368512769,1751194251550,-744.85,0.00027397,3]
[368512770,1751194251559,-8244.69,0.00027397,3]
[368512771,1751194251569,-490.0,0.00027397,3]
[368512772,1751194251578,-490.0,0.00027397,3]
[368512773,1751194251587,-490.0,0.00027397,3]
[368512774,1751194251596,-1410.0,0.00027397,3]
[368512775,1751194251605,-498.28040211,0.00027397,3]
[368512776,1751194251615,-490.0,0.00027397,3]
[368512777,1751194251624,-490.0,0.00027397,3]
[368512778,1751194251633,-4501.21,0.00027397,3]
[368512779,1751194251643,-490.0,0.00027397,3]
[368512780,1751194251652,-717.96,0.00027397,3]
[368512781,1751194251662,-14024.58,0.00027397,3]
[368512782,1751194251671,-537.13,0.00027397,3]
[368512783,1751194251681,-650.77,0.00027397,3]
[368512784,1751194251691,-1613.25,0.00027397,3]
[368512785,1751194251700,-490.0,0.00027397,3]
[368512786,1751194251710,-3474.16,0.00027397,3]
[368512787,1751194251720,-390.0,0.00027397,3]
[368512788,1751194251729,-490.0,0.00027397,3]
[368512789,1751194251739,-2350.54,0.00027397,3]
[368512790,1751194251748,-490.0,0.00027397,3]
[368512791,1751194251758,-490.0,0.00027397,3]
[368512792,1751194251768,-9463.52,0.00027397,3]
[368512793,1751194251778,-490.0,0.00027397,3]
[368512794,1751194251787,-537.29,0.00027397,3]
[368512795,1751194251797,-490.0,0.00027397,3]
[368512796,1751194251807,-2017.18,0.00027397,3]
[368512797,1751194251816,-546.12,0.00027397,3]
[368512798,1751194251826,-594.99,0.00027397,3]
[368512799,1751194251835,-490.0,0.00027397,3]
[368512800,1751194251844,-490.0,0.00027397,3]
[368512801,1751194251854,-490.0,0.00027397,3]
[368512802,1751194251863,-490.0,0.00027397,3]
[368512803,1751194251873,-352.26964,0.00027397,3]
[368512804,1751194251883,-493.38221566,0.00027397,3]
[368512805,1751194251892,-1108.16,0.00027397,3]
[368512806,1751194251902,-1560.06,0.00027397,3]
[368512807,1751194251911,-713.87,0.00027397,3]
[368512808,1751194251920,-490.0,0.00027397,3]
[368512809,1751194251930,-334.44413,0.00027397,3]
[368512810,1751194251939,-490.0,0.00027397,3]
[368512811,1751194251949,-2002.91,0.00027397,3]
[368512812,1751194251959,-497.98,0.00027397,3]
[368512813,1751194251969,-644.91,0.00027397,3]
[368512814,1751194251979,-1166.54,0.00027397,3]
[368512815,1751194251988,-476.55981003,0.00027397,3]
[368512816,1751194251999,-1691.47,0.00027397,3]
[368512817,1751194252008,-190.76333242,0.00027397,4]
[368512818,1751194252017,-495.564615,0.00027397,3]
[368512819,1751194252027,-490.0,0.00027397,3]